{"text_format":"1","workbook":"xlsx","n_sheets":1,"sheets":["Sheet2"],"not_rendered":{"charts":0,"images":0,"macros":1,"external_links":0,"defined_names":0,"comments":0,"pivot_tables":0},"unopened":[],"bounds":{"document_bytes":16777216,"sheet_cells":100000,"rows_first":2000,"rows_last":500,"rows_between":2000,"halvings":0,"cell_chars":16384,"cell_head_chars":4096},"cells_cut":0,"cells_raw":0,"read":"whole","date_system":"1900"}

{"sheet":"Sheet2","index":0,"n_rows":20,"n_cols":24,"rows_kept":20,"cut":false,"hidden":false,"merged":[[0,1,0,2],[1,0,2,0],[1,19,2,19],[1,22,2,22],[1,23,2,23],[1,21,2,21],[1,20,2,20],[19,20,19,21],[6,24,6,25],[19,0,19,1],[1,2,1,5],[1,6,1,9],[1,10,1,13],[1,14,1,17]]}
[]
["الشهور","الأدوار","الدور الثانى",null,null,null,"الدور الثالث",null,null,null,"الدور الرابع",null,null,null,"الدور الخامس",null,null,null,null,"المجموع","البيان","الشقق التى اشتركت فى المصروفات","نصيب كل شقة للمدفوعات","Diff"]
[null,"المصاريف","شقة1","شقة2","شقة3","شقة4","شقة5","شقة6","شقة7","شقة8","شقة9","شقة10","شقة11","شقة12","شقة13","شقة14","شقة15","شقة16","محل الخياطة"]
["يناير",485,null,null,40,null,40,null,40,40,null,40,40,40,null,null,null,40,165,{"$f":"SUM(C4:S4)","v":485},"فاتورة كهرباء الخدمات",{"$f":"الشقق(C4:S4)","v":" (محل الخياطة) (شقة16) (شقة12) (شقة11) (شقة10) (شقة8) (شقة7) (شقة5) (شقة3)"},{"$f":"(B4-S4)/8","v":40},{"$f":"B4-T4","v":0}]
["فبراير",40,null,null,null,null,null,null,null,null,null,null,null,null,null,20,null,20,null,{"$f":"SUM(C5:S5)","v":40},null,{"$f":"الشقق(C5:S5)","v":" (شقة16) (شقة14)"},{"$f":"(B5-S5)/8","v":5},{"$f":"B5-T5","v":0}]
[null,null,null,null,null,null,null,null,null,null,null,null,null,null,null,null,null,null,null,0,null,"",0,0]
[null,null,null,null,null,null,null,null,null,null,null,null,null,null,null,null,null,null,null,0,null,"",0,0]
[null,null,null,null,null,null,null,null,null,null,null,null,null,null,null,null,null,null,null,0,null,"",0,0]
[null,null,null,null,null,null,null,null,null,null,null,null,null,null,null,null,null,null,null,0,null,"",0,0]
[null,null,null,null,null,null,null,null,null,null,null,null,null,null,null,null,null,null,null,0,null,"",0,0]
[null,null,null,null,null,null,null,null,null,null,null,null,null,null,null,null,null,null,null,0,null,"",0,0]
[null,null,null,null,null,null,null,null,null,null,null,null,null,null,null,null,null,null,null,0,null,"",0,0]
[null,null,null,null,null,null,null,null,null,null,null,null,null,null,null,null,null,null,null,0,null,"",0,0]
[null,null,null,null,null,null,null,null,null,null,null,null,null,null,null,null,null,null,null,0,null,"",0,0]
[null,null,null,null,null,null,null,null,null,null,null,null,null,null,null,null,null,null,null,0,null,"",0,0]
[null,null,null,null,null,null,null,null,null,null,null,null,null,null,null,null,null,null,null,0,null,"",0,0]
[null,null,null,null,null,null,null,null,null,null,null,null,null,null,null,null,null,null,null,0,null,"",0,0]
[null,null,null,null,null,null,null,null,null,null,null,null,null,null,null,null,null,null,null,0,null,"",0,0]
[null,null,null,null,null,null,null,null,null,null,null,null,null,null,null,null,null,null,null,0,null,"",0,0]
["المجموع العام",null,{"$f":"SUM(C4:C19)","v":0},0,40,0,40,0,40,40,0,null,null,null,null,20,0,60,{"$f":"SUM(S4:S19)","v":165},{"$f":"SUM(T4:T19)","v":525}]